{"text_format":"1","workbook":"xlsx","n_sheets":11,"sheets":["الترحيل","المجموعات","الأجمالى","1-1","1-2","1-3","2-1","2-2","2-3","3-1","3-2"],"not_rendered":{"charts":0,"images":1,"macros":1,"external_links":0,"defined_names":1,"comments":0,"pivot_tables":0},"unopened":[],"bounds":{"document_bytes":16777216,"sheet_cells":100000,"rows_first":2000,"rows_last":500,"rows_between":2000,"halvings":0,"cell_chars":16384,"cell_head_chars":4096},"cells_cut":0,"cells_raw":0,"read":"whole","date_system":"1900"}

{"sheet":"الترحيل","index":0,"n_rows":24,"n_cols":10,"rows_kept":24,"cut":false,"hidden":false,"merged":[]}
[{"$f":"IFERROR(INDEX(MID(Sheets,FIND(\"]\",Sheets)+1,255),ROW(B1),1),\"\")","v":"الترحيل"}]
[{"$f":"IFERROR(INDEX(MID(Sheets,FIND(\"]\",Sheets)+1,255),ROW(B2),1),\"\")","v":"المجموعات"},null,null,null,null,"الأجمالى"]
[{"$f":"IFERROR(INDEX(MID(Sheets,FIND(\"]\",Sheets)+1,255),ROW(B3),1),\"\")","v":"الأجمالى"}]
[{"$f":"IFERROR(INDEX(MID(Sheets,FIND(\"]\",Sheets)+1,255),ROW(B4),1),\"\")","v":"1-1"}]
[{"$f":"IFERROR(INDEX(MID(Sheets,FIND(\"]\",Sheets)+1,255),ROW(B5),1),\"\")","v":"1-2"}]
[{"$f":"IFERROR(INDEX(MID(Sheets,FIND(\"]\",Sheets)+1,255),ROW(B6),1),\"\")","v":"1-3"},null,null,null,null,null,null,null,null,"الترحيل"]
[{"$f":"IFERROR(INDEX(MID(Sheets,FIND(\"]\",Sheets)+1,255),ROW(B7),1),\"\")","v":"2-1"},null,null,null,null,null,null,null,null,"المجموعات"]
[{"$f":"IFERROR(INDEX(MID(Sheets,FIND(\"]\",Sheets)+1,255),ROW(B8),1),\"\")","v":"2-2"},null,null,null,null,null,null,null,null,"الأجمالى"]
[{"$f":"IFERROR(INDEX(MID(Sheets,FIND(\"]\",Sheets)+1,255),ROW(B9),1),\"\")","v":"2-3"},null,null,null,null,null,null,null,null,"2014-01-01"]
[{"$f":"IFERROR(INDEX(MID(Sheets,FIND(\"]\",Sheets)+1,255),ROW(B10),1),\"\")","v":"3-1"},null,null,null,null,null,null,null,null,"2014-01-02"]
[{"$f":"IFERROR(INDEX(MID(Sheets,FIND(\"]\",Sheets)+1,255),ROW(B11),1),\"\")","v":"3-2"},null,null,null,null,null,null,null,null,"2014-01-03"]
[{"$f":"IFERROR(INDEX(MID(Sheets,FIND(\"]\",Sheets)+1,255),ROW(B12),1),\"\")","v":""},null,null,null,null,null,null,null,null,"2014-02-01"]
[{"$f":"IFERROR(INDEX(MID(Sheets,FIND(\"]\",Sheets)+1,255),ROW(B13),1),\"\")","v":""},null,null,null,null,null,null,null,null,"2014-02-02"]
[{"$f":"IFERROR(INDEX(MID(Sheets,FIND(\"]\",Sheets)+1,255),ROW(B14),1),\"\")","v":""},null,null,null,null,null,null,null,null,"2014-02-03"]
[{"$f":"IFERROR(INDEX(MID(Sheets,FIND(\"]\",Sheets)+1,255),ROW(B15),1),\"\")","v":""},null,null,null,null,null,null,null,null,"2014-03-01"]
[{"$f":"IFERROR(INDEX(MID(Sheets,FIND(\"]\",Sheets)+1,255),ROW(B16),1),\"\")","v":""},null,null,null,null,null,null,null,null,"2014-03-02"]
[{"$f":"IFERROR(INDEX(MID(Sheets,FIND(\"]\",Sheets)+1,255),ROW(B17),1),\"\")","v":""}]
[{"$f":"IFERROR(INDEX(MID(Sheets,FIND(\"]\",Sheets)+1,255),ROW(B18),1),\"\")","v":""}]
[{"$f":"IFERROR(INDEX(MID(Sheets,FIND(\"]\",Sheets)+1,255),ROW(B19),1),\"\")","v":""}]
[{"$f":"IFERROR(INDEX(MID(Sheets,FIND(\"]\",Sheets)+1,255),ROW(B20),1),\"\")","v":""}]
[{"$f":"IFERROR(INDEX(MID(Sheets,FIND(\"]\",Sheets)+1,255),ROW(B21),1),\"\")","v":""}]
[{"$f":"IFERROR(INDEX(MID(Sheets,FIND(\"]\",Sheets)+1,255),ROW(B22),1),\"\")","v":""}]
[{"$f":"IFERROR(INDEX(MID(Sheets,FIND(\"]\",Sheets)+1,255),ROW(B23),1),\"\")","v":""}]
[{"$f":"IFERROR(INDEX(MID(Sheets,FIND(\"]\",Sheets)+1,255),ROW(B24),1),\"\")","v":""}]

{"sheet":"المجموعات","index":1,"n_rows":0,"n_cols":0,"rows_kept":0,"cut":false,"hidden":false,"merged":[]}

{"sheet":"الأجمالى","index":2,"n_rows":0,"n_cols":0,"rows_kept":0,"cut":false,"hidden":false,"merged":[]}

{"sheet":"1-1","index":3,"n_rows":0,"n_cols":0,"rows_kept":0,"cut":false,"hidden":false,"merged":[]}

{"sheet":"1-2","index":4,"n_rows":0,"n_cols":0,"rows_kept":0,"cut":false,"hidden":false,"merged":[]}

{"sheet":"1-3","index":5,"n_rows":0,"n_cols":0,"rows_kept":0,"cut":false,"hidden":false,"merged":[]}

{"sheet":"2-1","index":6,"n_rows":0,"n_cols":0,"rows_kept":0,"cut":false,"hidden":false,"merged":[]}

{"sheet":"2-2","index":7,"n_rows":0,"n_cols":0,"rows_kept":0,"cut":false,"hidden":false,"merged":[]}

{"sheet":"2-3","index":8,"n_rows":0,"n_cols":0,"rows_kept":0,"cut":false,"hidden":false,"merged":[]}

{"sheet":"3-1","index":9,"n_rows":0,"n_cols":0,"rows_kept":0,"cut":false,"hidden":false,"merged":[]}

{"sheet":"3-2","index":10,"n_rows":0,"n_cols":0,"rows_kept":0,"cut":false,"hidden":false,"merged":[]}